[Event "26th OIBM 2023"]
[Site "Gmund am Tegernsee"]
[Date "2023.10.29"]
[Round "2.5"]
[White "Petrov, Nikita"]
[Black "Moeldner, Juergen"]
[Result "1/2-1/2"]
[ECO "C42"]
[WhiteElo "2551"]
[BlackElo "2227"]
[Annotator "TA"]
[PlyCount "117"]
[EventDate "2023.10.04"]
[EventType "swiss"]
[EventCountry "GER"]
[SourceTitle "playchess.com"]
[Source "ChessBase"]
[SourceQuality "1"]
[TimeControl "40/5400+30:1800+30"]

{[%evp 13,117,7,12,2,0,0,17,14,31,-2,32,23,47,10,6,10,13,0,0,0,0,-1,9,0,0,0,0,-6,0,0,0,-35,0,0,0,0,0,0,4,3,2,4,1,0,13,8,14,3,14,0,0,0,64,58,76,62,75,68,68,42,55,59,36,64,192,47,72,57,63,45,85,35,93,0,0,0,0,0,132,0,0,0,0,0,0,0,0,0,0,0,0,0,0,0,0,0,0,0,0,0,0,0,0,0,0,0]} 1. e4 {[%emt 0:00:05]} e5 {[%emt 0:00:07]} 2. Nf3 {[%emt 0:00:18]} Nf6 {[%emt 0:00:07]} 3. Nxe5 {[%emt 0:01:01]} d6 {[%emt 0:00:09]} 4. Nf3 {[%emt 0:00:31]} Nxe4 {[%emt 0:00:09]} 5. Bd3 {[%emt 0:00:56]} Nf6 {[%emt 0:01:47]} 6. O-O {[%emt 0:00:30]} Be7 {[%emt 0:00:17]} 7. h3 {[%emt 0:00:35]} O-O {[%emt 0:01:42]} 8. c3 {[%emt 0:00:06] C42: Petroff Defence: 3 Nxe5 and unusual White 3rd moves.} Nbd7 {[%emt 0:02:14]} 9. Bc2 {[%emt 0:01:02]} Re8 {[%emt 0:02:18]} 10. d4 {[%emt 0:01:27]} b6 {[%emt 0:03:36]} 11. c4 {[%emt 0:03:56] [#]} c6 $146 {[%emt 0:02:58]} ({Predecessor:} 11... Ba6 12. Bd3 d5 13. cxd5 Bxd3 14. Qxd3 Nxd5 15. Qc4 N7f6 16. Nc3 Nxc3 17. bxc3 Qd5 {½-½ Okhotnik,V (2426)-Roussel Roozmon,T (2425) Bois Colombes Masters 2004 (1)}) 12. Nc3 {[%emt 0:03:54]} Ba6 {[%emt 0:07:52]} 13. Bd3 {[%emt 0:01:42]} d5 {[%emt 0:05:17]} 14. b3 {[%emt 0:07:33]} Bb4 {[%emt 0:09:14]} 15. Ne2 {[%emt 0:02:30]} Rc8 {[%emt 0:18:21]} 16. Bg5 {[%emt 0:09:57]} h6 {[%emt 0:06:58]} 17. Bh4 {[%emt 0:00:16]} Be7 {[%emt 0:01:09]} 18. Nc3 {[%emt 0:06:22]} Ne4 {[%emt 0:04:09][%mdl 64] Discovered Attack} 19. Bxe7 {[%emt 0:00:31]} Rxe7 {[%emt 0:01:20]} 20. Ne2 {[%emt 0:07:48]} Ndf6 {[%emt 0:05:16]} 21. Rc1 {[%emt 0:01:56]} c5 {[%emt 0:01:49]} 22. dxc5 {[%emt 0:06:01]} dxc4 {[%emt 0:08:37]} (22... Nxc5 $5 {[%cal Rd5c4]} 23. Bf5 Ncd7 $15) 23. Bxc4 {[%emt 0:06:11]} Bxc4 {[%emt 0:01:34]} 24. Rxc4 {[%emt 0:00:22] And now c6 would win.} Qxd1 {[%emt 0:01:47]} 25. Rxd1 {[%emt 0:00:04] Black must now prevent c6.} Rxc5 {[%emt 0:01:28]} 26. Rd8+ {[%emt 0:02:17]} Kh7 {[%emt 0:00:40]} 27. Rxc5 {[%emt 0:00:34]} Nxc5 {[%emt 0:01:40]} 28. Ned4 {[%emt 0:02:46]} Rd7 {[%emt 0:00:53]} 29. Rxd7 {[%emt 0:02:06]} Nfxd7 $11 {[%emt 0:00:23][%mdl 4096] Endgame KNN-KNN} 30. Nc6 {[%emt 0:01:10]} a5 {[%emt 0:02:04]} 31. Nfe5 {[%emt 0:01:39]} Nxe5 {[%emt 0:03:20]} 32. Nxe5 {[%emt 0:00:04] KN-KN} Kg8 {[%emt 0:02:21]} (32... a4 $11) 33. Nc4 $14 {[%emt 0:01:54]} Nd7 {[%emt 0:01:29]} 34. Kf1 $1 {[%emt 0:00:16]} Kf8 {[%emt 0:00:05]} 35. Ke2 {[%emt 0:00:03]} Ke7 {[%emt 0:00:08]} 36. Ke3 {[%emt 0:02:18]} Kd8 {[%emt 0:00:31]} 37. Kd4 {[%emt 0:01:52]} Kc7 {[%emt 0:00:33] Repels Nd6} 38. f4 {[%emt 0:01:03]} Kc6 {[%emt 0:02:07]} (38... Nb8 $14) 39. g4 {[%emt 0:00:54]} (39. Ne5+ $1 $18 Nxe5 40. fxe5) 39... f6 {[%emt 0:02:23]} 40. h4 {[%emt 0:14:47]} Nc5 {[%emt 0:00:52]} 41. h5 {[%emt 0:30:20]} Nd7 {[%emt 0:03:58] [#]} 42. Ke4 {[%emt 0:00:00]} ({White should try} 42. Ne3 $1 $16 {[%cal Re3f5] Hoping for Nf5.} Nc5 43. Nf5 Ne6+ 44. Ke4) 42... Kc5 {[%emt 0:03:53][%cal Oa5a4]} 43. Kd3 {[%emt 0:00:00]} ({White should play} 43. Kf5 $16 Nf8 44. a3) 43... Nf8 $11 {[%emt 0:03:33]} 44. Ne3 {[%emt 0:00:00]} (44. Ke3 $11) 44... Ne6 $16 {[%emt 0:03:40]} 45. Ke4 {[%emt 0:00:00]} b5 $1 {[%emt 0:04:53] [#]} 46. Nc2 {[%emt 0:00:00]} (46. Nf5 $1 $16) 46... a4 $1 $11 {[%emt 0:05:16] The position is equal.} 47. Kf5 {[%emt 0:00:37]} axb3 {[%emt 0:01:55]} 48. axb3 {[%emt 0:00:03]} Nf8 {[%emt 0:02:25]} 49. Ke4 {[%emt 0:02:10]} Ne6 {[%emt 0:00:09]} 50. Ke3 {[%emt 0:00:13]} Kd5 {[%emt 0:00:31]} 51. Nb4+ {[%emt 0:01:31]} Kc5 {[%emt 0:00:47]} 52. Na6+ {[%emt 0:03:33]} Kb6 {[%emt 0:00:24]} 53. Nb4 {[%emt 0:00:06]} Kc5 {[%emt 0:00:04]} 54. Na2 {[%emt 0:03:17]} Nc7 {[%emt 0:00:26]} 55. Ke4 {[%emt 0:00:23] Kf5 is the strong threat.} Ne6 $1 {[%emt 0:00:45]} 56. Kf5 {[%emt 0:03:17]} Nf8 {[%emt 0:00:21]} (56... Nd4+ $2 57. Kg6 f5 58. gxf5 $18) 57. Ke4 {[%emt 0:00:32]} Ne6 {[%emt 0:00:10]} 58. Kf5 {[%emt 0:00:03]} Nf8 {[%emt 0:00:06]} (58... Nd4+ $2 59. Kg6 f5 60. gxf5 $18) 59. Ke4 {[%emt 0:01:49] Weighted Error Value: White=0.14 (very precise) /Black=0.09 (flawless)} 1/2-1/2

[Event "26th OIBM 2023"]
[Site "Gmund am Tegernsee"]
[Date "2023.10.29"]
[Round "2.6"]
[White "Ciolek, Andreas"]
[Black "Van Foreest, Lucas"]
[Result "0-1"]
[ECO "D35"]
[WhiteElo "2215"]
[BlackElo "2540"]
[Annotator "TA"]
[PlyCount "80"]
[EventDate "2023.10.04"]
[EventType "swiss"]
[EventCountry "GER"]
[SourceTitle "playchess.com"]
[Source "ChessBase"]
[SourceQuality "1"]
[TimeControl "40/5400+30:1800+30"]

{[%evp 9,80,19,29,31,34,33,33,10,18,22,16,16,13,-4,0,-13,0,-12,-13,-15,-4,-6,-5,-25,-16,-43,-33,-43,-36,-40,-15,-86,0,-61,-63,-61,-61,-70,-70,-72,-72,-104,-104,-177,-170,-159,-169,-193,-150,-187,-101,-107,-91,-91,-77,-587,-584,-582,-570,-583,-572,-550,-527,-702,-687,-641,-640,-702,-691,-685,-674,-1233,-671]} 1. d4 {[%emt 0:00:06]} Nf6 {[%emt 0:00:17]} 2. c4 {[%emt 0:00:10]} e6 {[%emt 0:00:40]} 3. Nc3 {[%emt 0:00:14]} d5 {[%emt 0:00:30]} 4. cxd5 {[%emt 0:00:11]} exd5 {[%emt 0:00:10]} 5. Bg5 {[%emt 0:00:10]} Be6 {[%emt 0:00:57]} 6. e3 {[%emt 0:04:18] D35: Queen's Gambit Declined: Exchange Variation.} Nbd7 {[%emt 0:00:51]} 7. Bd3 {[%emt 0:03:38]} c6 {[%emt 0:00:18]} 8. Nge2 {[%emt 0:00:36] White is slightly better.} h6 {[%emt 0:00:07]} 9. Bh4 {[%emt 0:00:59]} g5 {[%emt 0:00:09] Prevents Nf4} 10. Bg3 {[%emt 0:00:07]} Nh5 $1 {[%emt 0:00:07]} 11. Qc2 {[%emt 0:04:05]} Nxg3 {[%emt 0:00:10]} 12. Nxg3 {[%emt 0:01:42]} h5 {[%emt 0:00:14]} 13. O-O-O {[%emt 0:20:49]} h4 {[%emt 0:00:09]} 14. Nf5 {[%emt 0:01:55]} Qa5 {[%emt 0:00:22]} 15. Kb1 {[%emt 0:06:31]} O-O-O {[%emt 0:00:57]} 16. Rc1 {[%emt 0:09:46]} Kb8 {[%emt 0:00:07]} 17. Na4 {[%emt 0:02:41]} Nb6 {[%emt 0:25:27]} (17... Nf6 $5 {[%cal Rf6e4]}) 18. Nc5 {[%emt 0:03:53][%cal Oc5b7] And now Nxb7! would win.} Nc4 {[%emt 0:00:53] [#]} 19. Nb3 $146 {[%emt 0:03:52]} ({Predecessor:} 19. Ka1 Bxc5 20. dxc5 Qxc5 21. b3 Qa5 22. Nd4 Ne5 23. Be2 Bd7 24. f4 gxf4 25. exf4 {0-1 Alfonso Durban,X (2159)-Kozak,A (2483) Maia op 2022 (1)}) 19... Qa4 {[%emt 0:04:45][%cal Of8a3] ...Ba3! is the strong threat.} 20. g4 {[%emt 0:04:12]} (20. Ka1 $1 $11) 20... h3 {[%emt 0:05:50] Black is much more active.} (20... hxg3 $17 {aiming for ...g2.} 21. hxg3 Ba3 22. Rxh8 Rxh8 23. Bxc4 dxc4 24. bxa3 cxb3) 21. Nd2 {[%emt 0:06:41]} ({White should try} 21. Qe2 $11) 21... Qxc2+ $15 {[%emt 0:05:13]} 22. Kxc2 {[%emt 0:00:43]} Nd6 {[%emt 0:00:12]} 23. Rhg1 {[%emt 0:03:30]} f6 {[%emt 0:00:28]} 24. Rcf1 {[%emt 0:00:36]} Nxf5 {[%emt 0:00:34]} 25. gxf5 {[%emt 0:01:12]} Bf7 {[%emt 0:00:22]} 26. f4 {[%emt 0:01:03]} (26. Rd1 $17 {was necessary.}) 26... gxf4 $19 {[%emt 0:00:49]} 27. exf4 {[%emt 0:01:21]} Bd6 {[%emt 0:00:59]} 28. Be2 {[%emt 0:07:49]} Rh4 {[%emt 0:04:28][%cal Od8e8]} 29. Rg4 {[%emt 0:02:36]} Rdh8 {[%emt 0:00:24]} ({Better is} 29... Rxg4 $19 30. Bxg4 Rh8) 30. Rfg1 $17 {[%emt 0:01:56]} Kc8 {[%emt 0:07:18]} 31. Nf3 {[%emt 0:01:42]} R4h7 {[%emt 0:02:29]} (31... Rxg4 {simplifies} 32. Rxg4 Be8 33. Bd3 a5) 32. Ng5 $2 {[%emt 0:03:11][%mdl 8192] Loses the game.} fxg5 $19 {[%emt 0:00:07] Black is clearly winning.} 33. fxg5 {[%emt 0:00:04]} Bh5 {[%emt 0:00:57][%mdl 64] Skewer} ({Inferior is} 33... Re8 34. g6 Rh6 35. Bd3 $17) 34. g6 {[%emt 0:00:19]} Re7 {[%emt 0:00:57]} 35. Bd1 {[%emt 0:02:32][%cal Of5f6]} Bxh2 {[%emt 0:00:22]} ({Not} 35... Bxg4 36. Bxg4 Re4 37. f6+ Kd8 38. Bxh3 $17) 36. Rh1 {[%emt 0:00:54]} Bxg4 {[%emt 0:00:13]} 37. Bxg4 {[%emt 0:00:07] [#]} Rh4 $1 {[%emt 0:01:16]} ({Weaker is} 37... Re4 38. g7 Rg8 39. Bxh3 $17) 38. f6+ {[%emt 0:01:50]} Rxg4 {[%emt 0:00:06]} 39. fxe7 {[%emt 0:00:15] [#]} Kd7 {[%emt 0:00:27]} 40. Kb3 {[%emt 0:02:14]} (40. Kd3 Rg3+) 40... Bd6 {[%emt 0:00:21] Weighted Error Value: White=0.70/Black=0.09 (flawless)} 0-1

[Event "26th OIBM 2023"]
[Site "Gmund am Tegernsee"]
[Date "2023.10.29"]
[Round "2.7"]
[White "Stocek, Jiri"]
[Black "Imnadze, Nato"]
[Result "1-0"]
[ECO "E35"]
[WhiteElo "2535"]
[BlackElo "2207"]
[Annotator "RC"]
[PlyCount "69"]
[EventDate "2023.10.04"]
[EventType "swiss"]
[EventCountry "GER"]
[SourceTitle "playchess.com"]
[Source "ChessBase"]
[SourceQuality "1"]
[TimeControl "40/5400+30:1800+30"]

1. d4 {[%emt 0:00:05]} Nf6 {[%emt 0:00:07]} 2. c4 {[%emt 0:00:12]} e6 {[%emt 0:00:17]} 3. Nc3 {[%emt 0:00:22]} Bb4 {[%emt 0:00:05]} 4. Qc2 {[%emt 0:02:14]} d5 {[%emt 0:01:43]} 5. cxd5 {[%emt 0:00:15]} exd5 {[%emt 0:00:18]} 6. Bg5 {[%emt 0:00:28]} h6 {[%emt 0:02:25]} 7. Bh4 {[%emt 0:00:07]} O-O {[%emt 0:01:07]} 8. e3 {[%emt 0:01:29]} c6 {[%emt 0:00:30]} 9. Bd3 {[%emt 0:01:20]} Re8 {[%emt 0:02:27]} 10. Nge2 {[%emt 0:00:44]} Be7 {[%emt 0:05:14]} 11. h3 {[%emt 0:07:38]} Ne4 {[%emt 0:16:13]} 12. Bxe7 {[%emt 0:01:17]} Qxe7 {[%emt 0:00:05]} 13. Bxe4 {[%emt 0:01:05]} dxe4 {[%emt 0:00:05]} 14. Ng3 {[%emt 0:00:11]} f5 {[%emt 0:05:25]} 15. O-O {[%emt 0:01:30]} Na6 {[%emt 0:02:39]} 16. a3 {[%emt 0:00:18]} Be6 {[%emt 0:05:47]} 17. f3 {[%emt 0:06:27]} Qg5 {[%emt 0:03:44]} 18. Kh2 {[%emt 0:00:22]} Qxe3 {[%emt 0:14:01]} 19. fxe4 {[%emt 0:00:43]} Rf8 {[%emt 0:08:15]} 20. exf5 {[%emt 0:06:59]} Bc4 {[%emt 0:01:18]} 21. Qf2 {[%emt 0:20:31]} Qxf2 {[%emt 0:06:08]} 22. Rxf2 {[%emt 0:00:06]} Rad8 {[%emt 0:00:21]} 23. Rd1 {[%emt 0:01:03]} Nc7 {[%emt 0:00:27]} 24. Nge4 {[%emt 0:01:20]} Nd5 {[%emt 0:05:05]} 25. g4 {[%emt 0:00:46]} b6 {[%emt 0:03:22]} 26. Kg3 {[%emt 0:00:56]} Kf7 {[%emt 0:00:44]} 27. Nd2 {[%emt 0:03:09]} Ba6 {[%emt 0:02:42]} 28. Nf3 {[%emt 0:01:24]} Ne7 {[%emt 0:05:31]} 29. Ne5+ {[%emt 0:01:13]} Kg8 {[%emt 0:00:06]} 30. Ne4 {[%emt 0:04:01]} Bb7 {[%emt 0:05:57]} 31. f6 {[%emt 0:00:45]} gxf6 {[%emt 0:00:16]} 32. Nxf6+ {[%emt 0:00:09]} Kh8 {[%emt 0:00:46]} 33. Rdf1 {[%emt 0:05:14]} Rxd4 {[%emt 0:01:20]} 34. Nh5 {[%emt 0:01:32]} Rxf2 {[%emt 0:01:21]} 35. Rxf2 {[%emt 0:00:05]} 1-0

[Event "26th OIBM 2023"]
[Site "Gmund am Tegernsee"]
[Date "2023.10.29"]
[Round "2.8"]
[White "Tonndorf, Matthias"]
[Black "Kulaots, Kaido"]
[Result "1/2-1/2"]
[ECO "B46"]
[WhiteElo "2206"]
[BlackElo "2508"]
[Annotator "RC"]
[PlyCount "169"]
[EventDate "2023.10.04"]
[EventType "swiss"]
[EventCountry "GER"]
[SourceTitle "playchess.com"]
[Source "ChessBase"]
[SourceQuality "1"]
[TimeControl "40/5400+30:1800+30"]

1. e4 {[%emt 0:00:03]} c5 {[%emt 0:00:08]} 2. Nf3 {[%emt 0:00:14]} Nc6 {[%emt 0:00:12]} 3. d4 {[%emt 0:01:02]} cxd4 {[%emt 0:00:08]} 4. Nxd4 {[%emt 0:00:05]} e6 {[%emt 0:01:22]} 5. Nc3 {[%emt 0:00:31]} a6 {[%emt 0:00:16]} 6. Nxc6 {[%emt 0:02:20]} bxc6 {[%emt 0:00:06]} 7. Bd3 {[%emt 0:00:12]} d5 {[%emt 0:00:44]} 8. O-O {[%emt 0:00:32]} Nf6 {[%emt 0:00:38]} 9. Qe2 {[%emt 0:05:50]} Be7 {[%emt 0:01:39]} 10. b3 {[%emt 0:01:45]} O-O {[%emt 0:02:09]} 11. Bb2 {[%emt 0:04:43]} Bb7 {[%emt 0:03:46]} 12. Rad1 {[%emt 0:14:26]} Qc7 {[%emt 0:03:18]} 13. Rfe1 {[%emt 0:03:07]} Rfd8 {[%emt 0:17:03]} 14. Qf3 {[%emt 0:04:53]} h6 {[%emt 0:20:04]} 15. Qh3 {[%emt 0:13:15]} Bf8 {[%emt 0:06:23]} 16. a3 {[%emt 0:07:37]} c5 {[%emt 0:04:05]} 17. e5 {[%emt 0:07:33]} Nd7 {[%emt 0:00:56]} 18. Nb1 {[%emt 0:02:03]} c4 {[%emt 0:01:30]} 19. bxc4 {[%emt 0:01:29]} dxc4 {[%emt 0:00:31]} 20. Bf1 {[%emt 0:00:52]} Nb6 {[%emt 0:05:27]} 21. Rxd8 {[%emt 0:03:48]} Rxd8 {[%emt 0:00:14]} 22. Bc1 {[%emt 0:00:12]} Na4 {[%emt 0:10:03]} 23. Qg4 {[%emt 0:01:56]} Qa5 {[%emt 0:02:17]} 24. c3 {[%emt 0:02:15]} Bd5 {[%emt 0:09:32]} 25. Bxh6 {[%emt 0:02:29]} Rb8 {[%emt 0:00:09]} 26. Rc1 {[%emt 0:03:47]} Nc5 {[%emt 0:01:22]} 27. h4 {[%emt 0:03:54]} Nd3 {[%emt 0:06:44]} 28. Bxd3 {[%emt 0:00:43]} cxd3 {[%emt 0:00:02]} 29. h5 {[%emt 0:00:48]} Kh7 {[%emt 0:00:08]} 30. Be3 {[%emt 0:02:22]} Ba8 {[%emt 0:01:23]} 31. c4 {[%emt 0:03:32]} Qxe5 {[%emt 0:00:34]} 32. c5 {[%emt 0:03:38]} Bc6 {[%emt 0:01:34]} 33. Nd2 {[%emt 0:00:41]} Qd5 {[%emt 0:00:28]} 34. Nf3 {[%emt 0:01:39]} Rb7 {[%emt 0:00:42]} 35. Ng5+ {[%emt 0:02:27]} Kh8 {[%emt 0:00:20]} 36. Nf3 {[%emt 0:00:23]} Qe4 {[%emt 0:01:23]} 37. Qg5 {[%emt 0:00:53]} f6 {[%emt 0:00:32]} 38. Qg3 {[%emt 0:00:21]} e5 {[%emt 0:00:19]} 39. Nh4 {[%emt 0:00:58]} Kh7 {[%emt 0:01:10]} 40. Kf1 {[%emt 0:00:41]} Be8 {[%emt 0:00:32]} 41. Ng6 {[%emt 0:06:33]} Bxc5 {[%emt 0:07:04]} 42. Rxc5 {[%emt 0:02:21]} Rb1+ {[%emt 0:01:22]} 43. Rc1 {[%emt 0:00:32]} d2 {[%emt 0:05:25]} 44. Bxd2 {[%emt 0:01:31]} Rxc1+ {[%emt 0:00:11]} 45. Bxc1 {[%emt 0:00:07]} Qc4+ {[%emt 0:00:03]} 46. Kg1 {[%emt 0:00:20]} Qxc1+ {[%emt 0:00:05]} 47. Kh2 {[%emt 0:00:32]} Qh6 {[%emt 0:00:06]} 48. Kg1 {[%emt 0:02:43]} Qxh5 {[%emt 0:00:35]} 49. Ne7 {[%emt 0:00:50]} Qd1+ {[%emt 0:03:37]} 50. Kh2 {[%emt 0:00:13]} Bf7 {[%emt 0:04:34]} 51. Qc3 {[%emt 0:05:39]} Qd7 {[%emt 0:01:05]} 52. Qc2+ {[%emt 0:01:15]} g6 {[%emt 0:00:17]} 53. Qc5 {[%emt 0:01:20]} Kg7 {[%emt 0:00:52]} 54. Nc8 {[%emt 0:01:07]} Qd4 {[%emt 0:08:47]} 55. Qc7 {[%emt 0:03:28]} Qxf2 {[%emt 0:01:09]} 56. Nd6 {[%emt 0:00:12]} Qh4+ {[%emt 0:00:06]} 57. Kg1 {[%emt 0:00:10]} Qe1+ {[%emt 0:00:03]} 58. Kh2 {[%emt 0:00:14]} Qh4+ {[%emt 0:00:04]} 59. Kg1 {[%emt 0:00:09]} Qd4+ {[%emt 0:00:18]} 60. Kh2 {[%emt 0:00:43]} Qd5 {[%emt 0:01:16]} 61. Ne8+ {[%emt 0:00:22]} Kh8 {[%emt 0:02:27]} 62. Nxf6 {[%emt 0:00:44]} Qe6 {[%emt 0:00:08]} 63. Ne4 {[%emt 0:01:40]} Qf5 {[%emt 0:00:20]} 64. Nd6 {[%emt 0:01:36]} Qf4+ {[%emt 0:00:16]} 65. Kg1 {[%emt 0:00:37]} Bd5 {[%emt 0:01:00]} 66. Qd8+ {[%emt 0:02:11]} Kh7 {[%emt 0:00:14]} 67. Ne8 {[%emt 0:00:29]} Qd4+ {[%emt 0:00:42]} 68. Kh2 {[%emt 0:00:12]} Qf4+ {[%emt 0:00:51]} 69. Kg1 {[%emt 0:00:10]} Qd4+ {[%emt 0:00:19]} 70. Kh2 {[%emt 0:00:05]} Bf7 {[%emt 0:00:25]} 71. Qe7 {[%emt 0:00:30]} Qf4+ {[%emt 0:00:22]} 72. Kg1 {[%emt 0:00:09]} Kg8 {[%emt 0:01:55]} 73. Nf6+ {[%emt 0:00:27]} Kg7 {[%emt 0:00:05]} 74. Ne8+ {[%emt 0:00:36]} Kg8 {[%emt 0:00:04]} 75. Nf6+ {[%emt 0:00:06]} Kg7 {[%emt 0:00:03]} 76. Ne8+ {[%emt 0:00:08]} Kh6 {[%emt 0:00:58]} 77. Qf8+ {[%emt 0:01:21]} Kh5 {[%emt 0:00:31]} 78. Ng7+ {[%emt 0:04:22]} Kg4 {[%emt 0:01:06]} 79. Qc8+ {[%emt 0:00:55]} Kh4 {[%emt 0:00:28]} 80. Qd8+ {[%emt 0:00:55]} Kg4 {[%emt 0:00:42]} 81. Qc8+ {[%emt 0:00:36]} Kg5 {[%emt 0:00:16]} 82. Qd8+ {[%emt 0:00:07]} Qf6 {[%emt 0:00:30]} 83. Qd2+ {[%emt 0:00:25]} Qf4 {[%emt 0:00:43]} 84. Qd8+ {[%emt 0:00:14]} Qf6 {[%emt 0:00:26]} 85. Qd2+ {[%emt 0:00:08]} 1/2-1/2

[Event "26th OIBM 2023"]
[Site "Gmund am Tegernsee"]
[Date "2023.10.29"]
[Round "2.9"]
[White "Vetoshko, Volodymyr"]
[Black "Kindtner, Ulrich"]
[Result "1-0"]
[ECO "A40"]
[WhiteElo "2499"]
[BlackElo "2199"]
[Annotator "RC"]
[PlyCount "39"]
[EventDate "2023.10.04"]
[EventType "swiss"]
[EventCountry "GER"]
[SourceTitle "playchess.com"]
[Source "ChessBase"]
[SourceQuality "1"]
[TimeControl "40/5400+30:1800+30"]

1. d4 {[%emt 0:00:04]} g6 {[%emt 0:00:04]} 2. e4 {[%emt 0:00:32]} Bg7 {[%emt 0:00:05]} 3. c4 {[%emt 0:00:30]} Nc6 {[%emt 0:00:07]} 4. Nf3 {[%emt 0:00:46]} e5 {[%emt 0:00:06]} 5. Bg5 {[%emt 0:00:43]} Nge7 {[%emt 0:02:11]} 6. Nxe5 {[%emt 0:01:31]} Nxe5 {[%emt 0:00:29]} 7. dxe5 {[%emt 0:00:05]} Bxe5 {[%emt 0:00:08]} 8. Nc3 {[%emt 0:00:31]} O-O {[%emt 0:02:13]} 9. Qd2 {[%emt 0:04:45]} d6 {[%emt 0:04:42]} 10. Be2 {[%emt 0:12:42]} c6 {[%emt 0:07:18]} 11. O-O-O {[%emt 0:09:07]} f5 {[%emt 0:04:32]} 12. c5 {[%emt 0:07:34]} d5 {[%emt 0:13:26]} 13. exd5 {[%emt 0:00:54]} cxd5 {[%emt 0:05:23]} 14. Bc4 {[%emt 0:09:08]} Be6 {[%emt 0:08:29]} 15. Qe2 {[%emt 0:06:35]} Qc7 {[%emt 0:02:58]} 16. Bxe7 {[%emt 0:01:28]} Bf4+ {[%emt 0:15:40]} 17. Kb1 {[%emt 0:01:40]} Qxe7 {[%emt 0:00:10]} 18. Bxd5 {[%emt 0:01:21]} Rae8 {[%emt 0:01:54]} 19. Rhe1 {[%emt 0:00:57]} Rf6 {[%emt 0:01:25]} 20. Qc4 {[%emt 0:01:41]} 1-0

[Event "26th OIBM 2023"]
[Site "Gmund am Tegernsee"]
[Date "2023.10.29"]
[Round "2.10"]
[White "Jetzl, Joerg"]
[Black "Gallego Alcaraz, Andres Felipe"]
[Result "0-1"]
[ECO "A59"]
[WhiteElo "2181"]
[BlackElo "2495"]
[Annotator "RC"]
[PlyCount "95"]
[EventDate "2023.10.04"]
[EventType "swiss"]
[EventCountry "GER"]
[SourceTitle "playchess.com"]
[Source "ChessBase"]
[SourceQuality "1"]
[TimeControl "40/5400+30:1800+30"]

1. d4 {[%emt 0:00:16]} Nf6 {[%emt 0:00:09]} 2. c4 {[%emt 0:00:41]} c5 {[%emt 0:00:13]} 3. d5 {[%emt 0:01:02]} b5 {[%emt 0:00:24]} 4. cxb5 {[%emt 0:00:13]} a6 {[%emt 0:00:06]} 5. bxa6 {[%emt 0:00:17]} g6 {[%emt 0:00:17]} 6. Nc3 {[%emt 0:00:06]} Bxa6 {[%emt 0:00:33]} 7. e4 {[%emt 0:00:22]} Bxf1 {[%emt 0:00:06]} 8. Kxf1 {[%emt 0:00:02]} d6 {[%emt 0:00:10]} 9. g3 {[%emt 0:00:05]} Bg7 {[%emt 0:00:10]} 10. Kg2 {[%emt 0:00:02]} O-O {[%emt 0:00:15]} 11. Nf3 {[%emt 0:00:33]} Nbd7 {[%emt 0:00:08]} 12. a4 {[%emt 0:00:13]} Qb6 {[%emt 0:04:22]} 13. Qc2 {[%emt 0:02:51]} Rfb8 {[%emt 0:01:33]} 14. Nb5 {[%emt 0:00:38]} Ne8 {[%emt 0:05:22]} 15. Bd2 {[%emt 0:00:45]} Nc7 {[%emt 0:03:25]} 16. Nxc7 {[%emt 0:00:21]} Qxc7 {[%emt 0:00:03]} 17. Rab1 {[%emt 0:00:06]} Rb7 {[%emt 0:10:31]} 18. b3 {[%emt 0:19:49]} Qb8 {[%emt 0:07:22]} 19. h4 {[%emt 0:06:41]} h5 {[%emt 0:10:44]} 20. Rhe1 {[%emt 0:14:51]} Ra6 {[%emt 0:02:43]} 21. Bg5 {[%emt 0:00:56]} Kf8 {[%emt 0:14:11]} 22. Qe2 {[%emt 0:14:32]} Rab6 {[%emt 0:08:05]} 23. Nd2 {[%emt 0:01:21]} Ne5 {[%emt 0:02:20]} 24. Bf4 {[%emt 0:04:22]} Rb4 {[%emt 0:02:34]} 25. Bxe5 {[%emt 0:01:00]} Bxe5 {[%emt 0:00:04]} 26. Rbc1 {[%emt 0:00:33]} Bg7 {[%emt 0:01:44]} 27. g4 {[%emt 0:06:15]} hxg4 {[%emt 0:02:15]} 28. h5 {[%emt 0:02:21]} Rd4 {[%emt 0:05:22]} 29. hxg6 {[%emt 0:03:03]} Qc8 {[%emt 0:01:12]} 30. Rh1 {[%emt 0:02:33]} fxg6 {[%emt 0:01:15]} 31. Rh7 {[%emt 0:05:48]} Kg8 {[%emt 0:04:46]} 32. Rch1 {[%emt 0:01:01]} Rb8 {[%emt 0:02:08]} 33. Qe3 {[%emt 0:05:46]} Qf8 {[%emt 0:01:26]} 34. Nc4 {[%emt 0:03:04]} Qf3+ {[%emt 0:02:46]} 35. Qxf3 {[%emt 0:02:47]} gxf3+ {[%emt 0:00:04]} 36. Kg3 {[%emt 0:00:28]} Rxb3 {[%emt 0:00:25]} 37. Na5 {[%emt 0:01:45]} Be5+ {[%emt 0:00:59]} 38. Kg4 {[%emt 0:00:06]} Rxe4+ {[%emt 0:03:54]} 39. Kg5 {[%emt 0:00:04]} Rb1 {[%emt 0:03:32]} 40. Kxg6 {[%emt 0:01:56]} Rxh1 {[%emt 0:01:01]} 41. Rxh1 {[%emt 0:30:05]} Rxa4 {[%emt 0:30:21]} 42. Nc6 {[%emt 0:00:41]} Bf6 {[%emt 0:01:03]} 43. Rb1 {[%emt 0:00:00]} Rg4+ {[%emt 0:00:00]} 44. Kf5 {[%emt 0:00:00]} Rg2 {[%emt 0:00:00]} 45. Ke6 {[%emt 0:00:00]} Rxf2 {[%emt 0:00:00]} 46. Nxe7+ {[%emt 0:00:00]} Kg7 {[%emt 0:00:00]} 47. Rg1+ {[%emt 0:00:00]} Rg2 {[%emt 0:00:00]} 48. Rf1 {[%emt 0:00:00]} 0-1

[Event "26th OIBM 2023"]
[Site "Gmund am Tegernsee"]
[Date "2023.10.29"]
[Round "2.11"]
[White "Ghazarian, Kirk"]
[Black "Brandt, Sebastian"]
[Result "1-0"]
[ECO "A57"]
[WhiteElo "2473"]
[BlackElo "2188"]
[Annotator "RC"]
[PlyCount "51"]
[EventDate "2023.10.04"]
[EventType "swiss"]
[EventCountry "GER"]
[SourceTitle "playchess.com"]
[Source "ChessBase"]
[SourceQuality "1"]
[TimeControl "40/5400+30:1800+30"]

1. d4 {[%emt 0:00:15]} Nf6 {[%emt 0:00:06]} 2. c4 {[%emt 0:00:26]} a6 {[%emt 0:00:41]} 3. Nc3 {[%emt 0:00:25]} c5 {[%emt 0:01:05]} 4. d5 {[%emt 0:00:09]} b5 {[%emt 0:00:33]} 5. cxb5 {[%emt 0:00:52]} axb5 {[%emt 0:00:07]} 6. Nxb5 {[%emt 0:00:20]} Bb7 {[%emt 0:00:30]} 7. Nc3 {[%emt 0:00:31]} Qa5 {[%emt 0:00:28]} 8. Bd2 {[%emt 0:00:43]} Qb6 {[%emt 0:00:30]} 9. e4 {[%emt 0:01:14]} e6 {[%emt 0:01:45]} 10. dxe6 {[%emt 0:14:00]} fxe6 {[%emt 0:03:29]} 11. Bd3 {[%emt 0:02:53]} Nc6 {[%emt 0:03:20]} 12. Nf3 {[%emt 0:04:48]} Nb4 {[%emt 0:00:48]} 13. Bg5 {[%emt 0:11:08]} c4 {[%emt 0:29:14]} 14. Bxc4 {[%emt 0:13:54]} Nxe4 {[%emt 0:02:48]} 15. Nxe4 {[%emt 0:03:23]} Bxe4 {[%emt 0:00:53]} 16. O-O {[%emt 0:02:23]} Rc8 {[%emt 0:20:26]} 17. Rc1 {[%emt 0:03:48]} Nc6 {[%emt 0:13:54]} 18. Re1 {[%emt 0:06:27]} Bf5 {[%emt 0:02:44]} 19. Nh4 {[%emt 0:02:04]} Qa5 {[%emt 0:09:23]} 20. Bd2 {[%emt 0:01:00]} Bb4 {[%emt 0:03:48]} 21. Bxb4 {[%emt 0:00:07]} Qxb4 {[%emt 0:01:45]} 22. Nxf5 {[%emt 0:00:06]} O-O {[%emt 0:00:16]} 23. Qxd7 {[%emt 0:00:09]} Qxb2 {[%emt 0:00:55]} 24. Bxe6+ {[%emt 0:00:11]} Kh8 {[%emt 0:00:04]} 25. Qxg7+ {[%emt 0:00:22]} Qxg7 {[%emt 0:00:10]} 26. Nxg7 {[%emt 0:00:03]} 1-0